[Event "*** Titled Tuesday 3|2 Blitz"]
[Site "Chess.com"]
[Date "2015.03.03"]
[Round "9"]
[White "Chesseducation4u"]
[Black "biostatistician"]
[Result "1-0"]
[WhiteElo "2326"]
[BlackElo "2282"]
[TimeControl "180+2"]
[EndTime "12:53:37 PST"]
[Termination "Chesseducation4u won by resignation"]

1. Nf3 {[%clk 0:03:00]} 1... Nf6 {[%clk 0:02:58.1]} 2. g3 {[%clk 0:03:01.1]}
2... g6 {[%clk 0:02:59.4]} 3. b3 {[%clk 0:03:01.5]} 3... Bg7 {[%clk 0:03:01.3]}
4. Bb2 {[%clk 0:03:03.4]} 4... b6 {[%clk 0:03:02.7]} 5. Bg2 {[%clk 0:03:04.2]}
5... Bb7 {[%clk 0:03:04.2]} 6. O-O {[%clk 0:03:06.1]} 6... O-O {[%clk
0:03:05.7]} 7. c4 {[%clk 0:03:08]} 7... c5 {[%clk 0:03:07.1]} 8. Nc3 {[%clk
0:03:07.4]} 8... Nc6 {[%clk 0:03:08.2]} 9. Rc1 {[%clk 0:02:56.8]} 9... Rc8
{[%clk 0:03:01.6]} 10. e3 {[%clk 0:02:56.6]} 10... d5 {[%clk 0:02:59]} 11. Nxd5
{[%clk 0:02:56.9]} 11... Nxd5 {[%clk 0:03:00.1]} 12. Bxg7 {[%clk 0:02:57.6]}
12... Kxg7 {[%clk 0:03:01.1]} 13. cxd5 {[%clk 0:02:58.2]} 13... Qxd5 {[%clk
0:03:02.6]} 14. d4 {[%clk 0:02:58.9]} 14... cxd4 {[%clk 0:02:57.5]} 15. Nxd4
{[%clk 0:02:58.2]} 15... Qxg2+ {[%clk 0:02:16.1]} 16. Kxg2 {[%clk 0:03:00.1]}
16... Nxd4+ {[%clk 0:02:18]} 17. f3 {[%clk 0:02:57.6]} 17... Nxf3 {[%clk
0:02:03.2]} 18. Rxf3 {[%clk 0:02:54.8]} 18... Rfd8 {[%clk 0:02:04.3]} 19. Qe1
{[%clk 0:02:42.9]} 19... Rxc1 {[%clk 0:01:46.6]} 20. Qxc1 {[%clk 0:02:41.1]}
20... Rd3 {[%clk 0:01:45.9]} 21. Kf2 {[%clk 0:02:30.1]} 21... f5 {[%clk
0:01:41.3]} 22. Rf4 {[%clk 0:02:25.4]} 22... Be4 {[%clk 0:01:40.4]} 23. Ke2
{[%clk 0:02:15.6]} 23... Kf6 {[%clk 0:01:25.8]} 24. Qc7 {[%clk 0:01:55.2]} 24...
g5 {[%clk 0:01:16.1]} 25. Rxe4 {[%clk 0:01:51.2]} 25... fxe4 {[%clk 0:01:17.1]}
26. Qxa7 {[%clk 0:01:52.7]} 26... Rd6 {[%clk 0:01:17.6]} 27. a4 {[%clk
0:01:49.8]} 27... Rc6 {[%clk 0:01:18.3]} 28. Qb7 {[%clk 0:01:44.6]} 28... Rc1
{[%clk 0:01:15.6]} 29. Qxe4 {[%clk 0:01:40.9]} 1-0

[Event "*** Titled Tuesday 3|2 Blitz"]
[Site "Chess.com"]
[Date "2015.03.03"]
[Round "9"]
[White "MattyDPerrine"]
[Black "pedromartinez91"]
[Result "0-1"]
[WhiteElo "2188"]
[BlackElo "2169"]
[TimeControl "180+2"]
[EndTime "12:54:04 PST"]
[Termination "pedromartinez91 won by resignation"]

1. d4 {[%clk 0:02:58.8]} 1... d5 {[%clk 0:02:58.6]} 2. c4 {[%clk 0:02:58.8]}
2... dxc4 {[%clk 0:02:59.5]} 3. Nf3 {[%clk 0:02:59.3]} 3... c5 {[%clk
0:03:00.2]} 4. e3 {[%clk 0:03:00.2]} 4... cxd4 {[%clk 0:03:01.2]} 5. exd4 {[%clk
0:03:01.3]} 5... e6 {[%clk 0:03:02.3]} 6. Bxc4 {[%clk 0:03:02]} 6... Nf6 {[%clk
0:03:02.9]} 7. O-O {[%clk 0:03:03]} 7... Be7 {[%clk 0:03:04.4]} 8. Qe2 {[%clk
0:03:03.7]} 8... O-O {[%clk 0:03:05.6]} 9. Nc3 {[%clk 0:03:04.8]} 9... Nc6
{[%clk 0:03:06.5]} 10. Rd1 {[%clk 0:03:05.4]} 10... Na5 {[%clk 0:03:07.8]} 11.
Bd3 {[%clk 0:03:04.4]} 11... b6 {[%clk 0:03:09.1]} 12. Bg5 {[%clk 0:02:54.6]}
12... Bb7 {[%clk 0:03:10.3]} 13. Rac1 {[%clk 0:02:55.5]} 13... Rc8 {[%clk
0:03:10.6]} 14. Bb1 {[%clk 0:02:51.7]} 14... Nd5 {[%clk 0:03:11.1]} 15. Qd3
{[%clk 0:02:34.7]} 15... g6 {[%clk 0:03:11.7]} 16. Bh6 {[%clk 0:02:36.1]} 16...
Re8 {[%clk 0:03:12.7]} 17. Ne5 {[%clk 0:02:29.4]} 17... Bg5 {[%clk 0:03:13.8]}
18. Bxg5 {[%clk 0:02:11.4]} 18... Qxg5 {[%clk 0:03:12.6]} 19. Ne4 {[%clk
0:02:12.3]} 19... Qxc1 {[%clk 0:03:05.9]} 20. Nd6 {[%clk 0:01:39.5]} 20... Qg5
{[%clk 0:03:01.8]} 21. Nexf7 {[%clk 0:01:13.6]} 21... Qf6 {[%clk 0:02:44]} 22.
Nh6+ {[%clk 0:00:36.4]} 22... Kg7 {[%clk 0:02:40.7]} 23. Ng4 {[%clk 0:00:29.3]}
23... Qe7 {[%clk 0:02:20.3]} 24. Qg3 {[%clk 0:00:19.2]} 24... Nc6 {[%clk
0:02:11.9]} 25. h4 {[%clk 0:00:10.3]} 25... Nf6 {[%clk 0:02:12.5]} 26. Ne3
{[%clk 0:00:06]} 26... Nh5 {[%clk 0:02:07.5]} 27. Qg4 {[%clk 0:00:07.1]} 27...
Qxd6 {[%clk 0:02:06.4]} 0-1

[Event "*** Titled Tuesday 3|2 Blitz"]
[Site "Chess.com"]
[Date "2015.03.03"]
[Round "9"]
[White "wonderfultime"]
[Black "GeorgMeier"]
[Result "1/2-1/2"]
[WhiteElo "2552"]
[BlackElo "2743"]
[TimeControl "180+2"]
[EndTime "12:54:39 PST"]
[Termination "Game drawn by repetition"]

1. d4 {[%clk 0:03:00]} 1... e6 {[%clk 0:02:58.7]} 2. c4 {[%clk 0:03:00]} 2...
Nf6 {[%clk 0:02:59.5]} 3. Nf3 {[%clk 0:03:01]} 3... d5 {[%clk 0:03:00.9]} 4. Nc3
{[%clk 0:03:02]} 4... Be7 {[%clk 0:03:02]} 5. Bf4 {[%clk 0:03:02.8]} 5... O-O
{[%clk 0:03:03]} 6. e3 {[%clk 0:03:04.4]} 6... Nbd7 {[%clk 0:03:03.7]} 7. c5
{[%clk 0:03:05.5]} 7... c6 {[%clk 0:03:04.1]} 8. Bd3 {[%clk 0:03:01.7]} 8... b6
{[%clk 0:03:04.3]} 9. b4 {[%clk 0:03:02.9]} 9... a5 {[%clk 0:03:05.8]} 10. a3
{[%clk 0:03:04.4]} 10... Ba6 {[%clk 0:03:06.7]} 11. b5 {[%clk 0:02:59.4]} 11...
Bb7 {[%clk 0:03:05.2]} 12. cxb6 {[%clk 0:02:56.1]} 12... Nxb6 {[%clk 0:02:58.2]}
13. O-O {[%clk 0:02:56.3]} 13... a4 {[%clk 0:02:42.7]} 14. bxc6 {[%clk
0:02:35.8]} 14... Bxc6 {[%clk 0:02:43.5]} 15. Ne5 {[%clk 0:02:37.7]} 15... Be8
{[%clk 0:02:43.4]} 16. Qb1 {[%clk 0:02:29.1]} 16... h6 {[%clk 0:02:32.5]} 17.
Rc1 {[%clk 0:02:26.6]} 17... Rc8 {[%clk 0:02:28.3]} 18. h3 {[%clk 0:02:21.6]}
18... Nc4 {[%clk 0:02:24.9]} 19. Nxc4 {[%clk 0:01:36]} 19... dxc4 {[%clk
0:02:25]} 20. Be4 {[%clk 0:01:37.6]} 20... Nxe4 {[%clk 0:02:20.1]} 21. Nxe4
{[%clk 0:01:35.3]} 21... Bc6 {[%clk 0:02:00.4]} 22. Nc3 {[%clk 0:01:35.8]} 22...
Qa5 {[%clk 0:01:55.6]} 23. Qc2 {[%clk 0:01:30.5]} 23... Rfd8 {[%clk 0:01:53]}
24. Rcb1 {[%clk 0:01:30.4]} 24... Qa8 {[%clk 0:01:43.5]} 25. f3 {[%clk
0:01:24.8]} 25... Qa7 {[%clk 0:01:40.8]} 26. Bg3 {[%clk 0:01:24]} 26... Qa5
{[%clk 0:01:36.3]} 27. Rb2 {[%clk 0:01:04.4]} 27... Bg5 {[%clk 0:01:36]} 28. Bf2
{[%clk 0:01:01.6]} 28... Be7 {[%clk 0:01:20.4]} 29. Bg3 {[%clk 0:00:58.9]} 29...
Bg5 {[%clk 0:01:21.1]} 30. Bf2 {[%clk 0:00:59.9]} 30... Be7 {[%clk 0:00:56.7]}
31. Bg3 {[%clk 0:00:59.7]} 1/2-1/2

[Event "*** Titled Tuesday 3|2 Blitz"]
[Site "Chess.com"]
[Date "2015.03.03"]
[Round "9"]
[White "exoticprincess"]
[Black "AkshatChandra"]
[Result "1/2-1/2"]
[WhiteElo "2758"]
[BlackElo "2550"]
[TimeControl "180+2"]
[EndTime "12:55:14 PST"]
[Termination "Game drawn by repetition"]

1. b3 {[%clk 0:03:00]} 1... e5 {[%clk 0:02:53.8]} 2. Bb2 {[%clk 0:03:01.2]} 2...
Nc6 {[%clk 0:02:55.4]} 3. e3 {[%clk 0:03:02.8]} 3... Nf6 {[%clk 0:02:56.4]} 4.
Bb5 {[%clk 0:03:02.8]} 4... Bd6 {[%clk 0:02:55.9]} 5. Na3 {[%clk 0:03:04]} 5...
a6 {[%clk 0:02:57.4]} 6. Bxc6 {[%clk 0:03:04.9]} 6... dxc6 {[%clk 0:02:59.3]} 7.
Nc4 {[%clk 0:03:06.5]} 7... Qe7 {[%clk 0:03:00]} 8. Ne2 {[%clk 0:03:07.8]} 8...
O-O {[%clk 0:03:00.6]} 9. O-O {[%clk 0:03:09]} 9... Bg4 {[%clk 0:03:01.2]} 10.
f3 {[%clk 0:03:08.6]} 10... Bh5 {[%clk 0:02:47.6]} 11. g4 {[%clk 0:03:07.9]}
11... Bg6 {[%clk 0:02:48.4]} 12. e4 {[%clk 0:03:06]} 12... Bc5+ {[%clk
0:02:34.5]} 13. Kg2 {[%clk 0:03:05.9]} 13... Nd7 {[%clk 0:01:45.1]} 14. Ng3
{[%clk 0:03:05.7]} 14... f6 {[%clk 0:01:32.4]} 15. h4 {[%clk 0:03:04.8]} 15...
h6 {[%clk 0:01:26.7]} 16. h5 {[%clk 0:03:05.6]} 16... Bh7 {[%clk 0:01:23.1]} 17.
a4 {[%clk 0:03:06.8]} 17... Rfd8 {[%clk 0:01:21.8]} 18. a5 {[%clk 0:03:07.7]}
18... Nf8 {[%clk 0:01:21.5]} 19. Nf5 {[%clk 0:03:06.1]} 19... Qf7 {[%clk
0:01:20.4]} 20. d3 {[%clk 0:03:02.3]} 20... Ne6 {[%clk 0:01:21.5]} 21. Bc1
{[%clk 0:03:03.6]} 21... Kh8 {[%clk 0:01:09.2]} 22. Kg3 {[%clk 0:03:02.9]} 22...
b5 {[%clk 0:01:02.5]} 23. axb6 {[%clk 0:03:02.7]} 23... cxb6 {[%clk 0:01:04]}
24. Be3 {[%clk 0:03:03.4]} 24... Bxf5 {[%clk 0:00:58.9]} 25. gxf5 {[%clk
0:02:57.5]} 25... Bxe3 {[%clk 0:00:55.3]} 26. Nxe3 {[%clk 0:02:55.2]} 26... Nf4
{[%clk 0:00:53.5]} 27. Rh1 {[%clk 0:02:55.8]} 27... b5 {[%clk 0:00:47.5]} 28.
Qd2 {[%clk 0:02:55.1]} 28... Rd7 {[%clk 0:00:38.5]} 29. Kg4 {[%clk 0:02:55.7]}
29... Rda7 {[%clk 0:00:34.8]} 30. b4 {[%clk 0:02:56.5]} 30... Qe7 {[%clk
0:00:32.3]} 31. Qc3 {[%clk 0:02:55.3]} 31... Rc8 {[%clk 0:00:28.2]} 32. Qc5
{[%clk 0:02:55.4]} 32... Qxc5 {[%clk 0:00:28.7]} 33. bxc5 {[%clk 0:02:56.6]}
33... a5 {[%clk 0:00:28.9]} 34. Rh2 {[%clk 0:02:54.5]} 34... a4 {[%clk
0:00:27.2]} 35. Rd2 {[%clk 0:02:53.9]} 35... Rd8 {[%clk 0:00:13.4]} 36. Nd1
{[%clk 0:02:45.2]} 36... b4 {[%clk 0:00:11.8]} 37. Nb2 {[%clk 0:02:45.6]} 37...
Rda8 {[%clk 0:00:11.1]} 38. Nc4 {[%clk 0:02:46.2]} 38... b3 {[%clk 0:00:09.5]}
39. Ra3 {[%clk 0:02:41.5]} 39... bxc2 {[%clk 0:00:06.7]} 40. Rxc2 {[%clk
0:02:40]} 40... Rd8 {[%clk 0:00:07.3]} 41. Nd6 {[%clk 0:02:41.2]} 41... Kg8
{[%clk 0:00:04.3]} 42. d4 {[%clk 0:02:42.3]} 42... Rb8 {[%clk 0:00:03.3]} 43.
dxe5 {[%clk 0:02:43.2]} 43... fxe5 {[%clk 0:00:05.2]} 44. Nc4 {[%clk 0:02:41.1]}
44... Rb3 {[%clk 0:00:06.6]} 45. Rxb3 {[%clk 0:02:39.7]} 45... axb3 {[%clk
0:00:08.5]} 46. Rb2 {[%clk 0:02:40.5]} 46... Ra2 {[%clk 0:00:08.6]} 47. Rxb3
{[%clk 0:02:37.4]} 47... Rg2+ {[%clk 0:00:08.9]} 48. Kh4 {[%clk 0:02:37.6]}
48... Rh2+ {[%clk 0:00:10]} 49. Kg4 {[%clk 0:02:38.7]} 49... Rg2+ {[%clk
0:00:10.9]} 50. Kh4 {[%clk 0:02:37.3]} 50... Rh2+ {[%clk 0:00:12]} 51. Kg4
{[%clk 0:02:37.3]} 51... Rg2+ {[%clk 0:00:11.9]} 52. Kh4 {[%clk 0:02:39.2]}
1/2-1/2

[Event "*** Titled Tuesday 3|2 Blitz"]
[Site "Chess.com"]
[Date "2015.03.03"]
[Round "9"]
[White "Mvpag"]
[Black "chesstatour"]
[Result "0-1"]
[WhiteElo "1845"]
[BlackElo "1894"]
[TimeControl "180+2"]
[EndTime "12:55:43 PST"]
[Termination "chesstatour won by checkmate"]

1. d4 {[%clk 0:02:55.8]} 1... e6 {[%clk 0:02:53.1]} 2. Nf3 {[%clk 0:02:56.9]}
2... f5 {[%clk 0:02:50.2]} 3. c4 {[%clk 0:02:54.5]} 3... Nf6 {[%clk 0:02:51.5]}
4. Nc3 {[%clk 0:02:55.9]} 4... Bb4 {[%clk 0:02:52.5]} 5. Bd2 {[%clk 0:02:53.2]}
5... b6 {[%clk 0:02:53.4]} 6. e3 {[%clk 0:02:52.5]} 6... O-O {[%clk 0:02:53.9]}
7. Bd3 {[%clk 0:02:53.5]} 7... Bb7 {[%clk 0:02:55]} 8. O-O {[%clk 0:02:53.8]}
8... c5 {[%clk 0:02:54.5]} 9. d5 {[%clk 0:02:53.4]} 9... Bxc3 {[%clk 0:02:29.4]}
10. Bxc3 {[%clk 0:02:52.1]} 10... Ne4 {[%clk 0:02:31.1]} 11. Bxe4 {[%clk
0:02:40.5]} 11... fxe4 {[%clk 0:02:33]} 12. Ne5 {[%clk 0:02:32.4]} 12... exd5
{[%clk 0:02:30.7]} 13. cxd5 {[%clk 0:02:28.8]} 13... d6 {[%clk 0:02:25.5]} 14.
Nc4 {[%clk 0:01:53.8]} 14... b5 {[%clk 0:02:07.7]} 15. Na5 {[%clk 0:01:52.7]}
15... Bc8 {[%clk 0:01:59.5]} 16. a3 {[%clk 0:01:42.5]} 16... Qg5 {[%clk
0:01:39]} 17. Kh1 {[%clk 0:01:25.3]} 17... Bg4 {[%clk 0:01:07.9]} 18. Qc2 {[%clk
0:01:22.4]} 18... Bf5 {[%clk 0:00:54.2]} 19. Rad1 {[%clk 0:01:15.7]} 19... Nd7
{[%clk 0:00:54.7]} 20. Nc6 {[%clk 0:01:00.2]} 20... a6 {[%clk 0:00:50.2]} 21. b4
{[%clk 0:01:00.1]} 21... Rae8 {[%clk 0:00:43.6]} 22. bxc5 {[%clk 0:00:56.7]}
22... Nxc5 {[%clk 0:00:44.7]} 23. Nd4 {[%clk 0:00:39.5]} 23... Bg4 {[%clk
0:00:41.2]} 24. Rd2 {[%clk 0:00:33.4]} 24... Qh5 {[%clk 0:00:21.9]} 25. f4
{[%clk 0:00:21.2]} 25... exf3 {[%clk 0:00:20.2]} 26. Nxf3 {[%clk 0:00:21.4]}
26... Ne4 {[%clk 0:00:18.5]} 27. Nd4 {[%clk 0:00:08.4]} 27... Rxf1# {[%clk
0:00:15.9]} 0-1

[Event "*** Titled Tuesday 3|2 Blitz"]
[Site "Chess.com"]
[Date "2015.03.03"]
[Round "9"]
[White "BjarkeSahl"]
[Black "Mazetovic"]
[Result "1-0"]
[WhiteElo "2121"]
[BlackElo "2330"]
[TimeControl "180+2"]
[EndTime "12:56:00 PST"]
[Termination "BjarkeSahl won by resignation"]

1. e4 {[%clk 0:03:00]} 1... c5 {[%clk 0:02:47.9]} 2. Nf3 {[%clk 0:03:00.5]} 2...
Nc6 {[%clk 0:02:46.6]} 3. d4 {[%clk 0:03:01.9]} 3... cxd4 {[%clk 0:02:46]} 4.
Nxd4 {[%clk 0:03:03.5]} 4... g6 {[%clk 0:02:47.1]} 5. c4 {[%clk 0:03:03.7]} 5...
Bg7 {[%clk 0:02:48.3]} 6. Nc2 {[%clk 0:03:05.2]} 6... Nf6 {[%clk 0:02:49.7]} 7.
Nc3 {[%clk 0:03:05.8]} 7... O-O {[%clk 0:02:51.2]} 8. Be2 {[%clk 0:03:06.8]}
8... d6 {[%clk 0:02:52.4]} 9. O-O {[%clk 0:03:07.7]} 9... Nd7 {[%clk 0:02:53.9]}
10. Bd2 {[%clk 0:03:03.3]} 10... a5 {[%clk 0:02:55.2]} 11. b3 {[%clk 0:02:57]}
11... Nc5 {[%clk 0:02:56.2]} 12. f3 {[%clk 0:02:47.4]} 12... f5 {[%clk
0:02:43.1]} 13. exf5 {[%clk 0:02:11.6]} 13... Bxf5 {[%clk 0:02:39.5]} 14. Ne3
{[%clk 0:02:11.2]} 14... Bd3 {[%clk 0:02:33.7]} 15. Kh1 {[%clk 0:02:07.1]} 15...
Nb4 {[%clk 0:02:30.2]} 16. Ned5 {[%clk 0:01:47.4]} 16... e6 {[%clk 0:02:27.6]}
17. Ne3 {[%clk 0:01:34.4]} 17... d5 {[%clk 0:02:16.3]} 18. cxd5 {[%clk 0:01:26]}
18... exd5 {[%clk 0:02:14.4]} 19. Bxd3 {[%clk 0:01:26.1]} 19... Ncxd3 {[%clk
0:02:05.3]} 20. Ng4 {[%clk 0:01:14.7]} 20... d4 {[%clk 0:02:01.6]} 21. Ne4
{[%clk 0:01:09.7]} 21... h5 {[%clk 0:01:59.2]} 22. Bg5 {[%clk 0:00:54]} 22...
Qd5 {[%clk 0:01:41.5]} 23. Ngf6+ {[%clk 0:00:47.7]} 23... Bxf6 {[%clk
0:01:41.9]} 24. Nxf6+ {[%clk 0:00:41.5]} 24... Rxf6 {[%clk 0:01:42.8]} 25. Bxf6
{[%clk 0:00:43]} 25... Rf8 {[%clk 0:01:41.1]} 26. Bh4 {[%clk 0:00:33.6]} 26...
Nf4 {[%clk 0:01:38]} 27. Bg3 {[%clk 0:00:34.6]} 27... Ne6 {[%clk 0:01:36.9]} 28.
a3 {[%clk 0:00:35.1]} 28... Nc6 {[%clk 0:01:37.6]} 29. Re1 {[%clk 0:00:33.3]}
29... Nc5 {[%clk 0:01:37]} 30. b4 {[%clk 0:00:28.4]} 30... Nb3 {[%clk
0:01:33.3]} 31. Rb1 {[%clk 0:00:24.3]} 31... a4 {[%clk 0:01:34.5]} 32. Qd3
{[%clk 0:00:23.9]} 32... Qf5 {[%clk 0:01:35.1]} 33. Qc4+ {[%clk 0:00:21.4]}
33... Qf7 {[%clk 0:01:34.8]} 34. Qd3 {[%clk 0:00:16.1]} 34... Qf5 {[%clk
0:01:33.5]} 35. Re4 {[%clk 0:00:15.3]} 35... Rd8 {[%clk 0:01:29.9]} 36. h4
{[%clk 0:00:15.4]} 36... Rd7 {[%clk 0:01:14.5]} 37. Rbe1 {[%clk 0:00:16.5]}
37... Kf7 {[%clk 0:01:12.6]} 38. b5 {[%clk 0:00:17.1]} 38... Ne7 {[%clk
0:01:10.4]} 39. Qc4+ {[%clk 0:00:16.8]} 39... Kf8 {[%clk 0:00:59.2]} 40. Rxe7
{[%clk 0:00:17.9]} 40... Rxe7 {[%clk 0:00:59.5]} 41. Bd6 {[%clk 0:00:19.5]} 1-0

[Event "*** Titled Tuesday 3|2 Blitz"]
[Site "Chess.com"]
[Date "2015.03.03"]
[Round "9"]
[White "bsmail"]
[Black "Polemistis"]
[Result "1-0"]
[WhiteElo "2045"]
[BlackElo "1585"]
[TimeControl "180+2"]
[EndTime "12:56:01 PST"]
[Termination "bsmail won by resignation"]

1. d4 {[%clk 0:03:00]} 1... f5 {[%clk 0:02:57.9]} 2. g3 {[%clk 0:03:00.3]} 2...
Nf6 {[%clk 0:02:57.1]} 3. Bg2 {[%clk 0:03:01.7]} 3... g6 {[%clk 0:02:58]} 4. c4
{[%clk 0:03:02.9]} 4... Bg7 {[%clk 0:02:59.3]} 5. Nc3 {[%clk 0:03:04.2]} 5...
O-O {[%clk 0:03:00.8]} 6. Nf3 {[%clk 0:03:05.4]} 6... d6 {[%clk 0:03:02.3]} 7.
O-O {[%clk 0:03:06.6]} 7... Qe8 {[%clk 0:03:03.9]} 8. d5 {[%clk 0:02:58.9]} 8...
a5 {[%clk 0:02:55.5]} 9. b3 {[%clk 0:02:58.3]} 9... c6 {[%clk 0:02:21.9]} 10.
Bf4 {[%clk 0:02:47.1]} 10... Ne4 {[%clk 0:02:01.9]} 11. Nxe4 {[%clk 0:02:29.7]}
11... fxe4 {[%clk 0:02:01.4]} 12. Ng5 {[%clk 0:02:28.6]} 12... Bxa1 {[%clk
0:01:54.2]} 13. Qxa1 {[%clk 0:02:29.4]} 13... cxd5 {[%clk 0:01:55.5]} 14. cxd5
{[%clk 0:02:28.7]} 14... h6 {[%clk 0:01:56.9]} 15. Nxe4 {[%clk 0:02:29.2]} 15...
Bf5 {[%clk 0:01:55.6]} 16. Bxh6 {[%clk 0:02:29]} 16... Rf7 {[%clk 0:01:55.1]}
17. Ng5 {[%clk 0:02:30]} 17... Nd7 {[%clk 0:01:46.5]} 18. e4 {[%clk 0:02:25]}
18... Bg4 {[%clk 0:01:43.4]} 19. h3 {[%clk 0:02:25.3]} 19... Be2 {[%clk
0:01:41.9]} 20. Re1 {[%clk 0:02:23]} 20... Bd3 {[%clk 0:01:36.1]} 21. Qd1 {[%clk
0:02:23.4]} 21... Nc5 {[%clk 0:01:21.4]} 22. Qg4 {[%clk 0:02:20.6]} 22... Rf6
{[%clk 0:01:17.2]} 23. e5 {[%clk 0:02:19.7]} 23... dxe5 {[%clk 0:01:17]} 24.
Rxe5 {[%clk 0:02:19.4]} 24... Bf5 {[%clk 0:01:17.7]} 25. Qc4 {[%clk 0:02:13.9]}
25... Nd7 {[%clk 0:00:53.8]} 26. d6+ {[%clk 0:02:12.8]} 26... e6 {[%clk
0:00:54.4]} 27. Re1 {[%clk 0:02:04.8]} 27... Rc8 {[%clk 0:00:51.6]} 28. Qh4
{[%clk 0:02:01.9]} 28... b5 {[%clk 0:00:33.4]} 29. g4 {[%clk 0:02:02]} 29... Bc2
{[%clk 0:00:28.3]} 30. Be4 {[%clk 0:02:02.3]} 30... Bxe4 {[%clk 0:00:28.3]} 31.
Nxe4 {[%clk 0:02:00.5]} 31... Rf7 {[%clk 0:00:28.2]} 32. Qg5 {[%clk 0:01:57]}
32... Nf8 {[%clk 0:00:19.5]} 33. Nf6+ {[%clk 0:01:56.4]} 33... Rxf6 {[%clk
0:00:19.8]} 34. Qxf6 {[%clk 0:01:58.3]} 34... Qf7 {[%clk 0:00:21.2]} 35. Qe5
{[%clk 0:01:51.8]} 35... Rc2 {[%clk 0:00:18.5]} 36. f4 {[%clk 0:01:49.1]} 36...
Qa7+ {[%clk 0:00:18.6]} 37. Qe3 {[%clk 0:01:48.7]} 37... Qb7 {[%clk 0:00:17.7]}
38. Qe4 {[%clk 0:01:42.4]} 38... Qa7+ {[%clk 0:00:18]} 39. Re3 {[%clk
0:01:42.8]} 39... Re2 {[%clk 0:00:17.4]} 40. f5 {[%clk 0:01:42.5]} 40... gxf5
{[%clk 0:00:15.2]} 41. gxf5 {[%clk 0:01:41.5]} 41... exf5 {[%clk 0:00:10.9]} 42.
Qd5+ {[%clk 0:01:42.5]} 42... Kh7 {[%clk 0:00:11]} 43. Qxf5+ {[%clk 0:01:28.6]}
43... Kxh6 {[%clk 0:00:12.2]} 44. Qxf8+ {[%clk 0:01:29.2]} 44... Kh7 {[%clk
0:00:13.6]} 45. Qe7+ {[%clk 0:01:24.2]} 45... Qxe7 {[%clk 0:00:13.9]} 46. Rxe7+
{[%clk 0:01:25.2]} 46... Rxe7 {[%clk 0:00:14.9]} 1-0